Cogmind - Beta 16 @@@ ROGUE MODE // 2025.11.27 @ 16:31:35 Player: Red Box Result: Destroyed by CR-OIC(R) with Subdweller Machine Gun Performance ------------- Evolutions (0) 0 Regions Visited (3) 600 Robots Destroyed (30) 150 Value Destroyed (595) 595 Prototype IDs (3) 60 Alien Tech Used (0) 0 Bonus (-110) -110 TOTAL SCORE: 1295 Bonus ------- Friendly Fire -110 Cogmind --------- Core Integrity 0/250 Matter 230/300 Energy 18/100 System Corruption 0% Temperature Cool (0) Movement Treading (160) Location -10/Subcaves Parts ------- > --- POWER (1) -------- (None) > --- PROPULSION (2) --- Light Treads Light Treads > --- UTILITY (2) ------ Heat Sink Large Storage Unit > --- WEAPON (2) ------- Beam Cannon Beam Cannon > --- INVENTORY (15) --- Subdweller Monowheel Medium Storage Unit High-capacity Matter Pod (200) Experimental Sensor Array Authchip [Armor] Particle Gun Rocket Launcher Mining Laser Peak State ------------ > --- POWER ------------ Ion Engine > --- PROPULSION ------- Aluminum Leg Aluminum Leg > --- UTILITY ---------- Medium Storage Unit Experimental Sensor Array > --- WEAPON ----------- Beam Cannon Beam Cannon > --- INVENTORY -------- Light Treads Light Treads Compact Wheel Large Storage Unit High-capacity Matter Pod Authchip [Armor] EM Pulse Gun Particle Gun Grenade Launcher Mining Laser [Rating: 16] Favorites ----------- Power Ion Engine Engine Ion Engine Propulsion Aluminum Leg Treads Light Treads Leg Aluminum Leg Wheel Compact Wheel Utility Medium Storage Unit Device Heat Sink Storage Medium Storage Unit Protection Weapon Shielding Weapon Beam Cannon Energy Gun EM Pulse Gun Energy Cannon Beam Cannon Ballistic Gun Assault Rifle Launcher Grenade Launcher Special Weapon Mining Laser Build | -11 -10 -10 -10 ------- Run | Yrd Mat Min Sub Slots Evolved . | . . . . Power . | . . . . Propulsion . | . . . . Utility . | . . . . Weapon . | . . . . Parts Attached 26 | 8 7 9 2 Power 1 | 1 . . . Engine 1 | 1 . . . Core . | . . . . Reactor . | . . . . Propulsion 8 | 2 1 4 1 Treads 2 | . . 1 1 Leg 5 | 2 1 2 . Wheel 1 | . . 1 . Hover . | . . . . Flight . | . . . . Utility 8 | 2 3 3 . Device 3 | 1 . 2 . Storage 3 | 1 1 1 . Processor . | . . . . Hackware . | . . . . Protection 2 | . 2 . . Artifact . | . . . . Weapon 9 | 3 3 2 1 Energy Gun 3 | 2 . 1 . Energy Cannon 2 | . 1 1 . Ballistic Gun 1 | 1 . . . Ballistic Cannon . | . . . . Launcher 2 | . 1 . 1 Special Weapon 1 | . 1 . . Impact Weapon . | . . . . Slashing Weapon . | . . . . Piercing Weapon . | . . . . Special Melee Weapon . | . . . . Unidentified Prototypes 1 | . . 1 . Parts Lost 6 | . . 4 2 Power 1 | . . 1 . Propulsion 3 | . . 2 1 Utility . | . . . . Weapon 2 | . . 1 1 Highest Loss Streak 4 | . . 4 2 To Critical Strikes . | . . . . Average Backups 9 | 4 8 10 9 Power . | . . . . Propulsion 3 | 3 3 2 1 Utility 2 | . 1 3 4 Weapon 3 | . 3 4 4 Tool/Special . | . . . . Unused Backups 6 | . 3 . 3 Power 1 | . 1 . . Propulsion 1 | . 1 . . Utility 3 | . 1 . 2 Weapon 1 | . . . 1 Tool/Special . | . . . . Average Slot Usage (%) 98 | . 99 98 85 Engine 13 | . 14 13 . Leg 26 | . 28 26 . Device 10 | . 10 10 14 Storage 14 | . 14 14 14 Protection 3 | . 3 3 . Energy Gun 8 | . 14 2 . Energy Cannon 10 | . . 22 23 Ballistic Gun 7 | . 11 2 . Peak Build Rating 16 | 9 10 16 8 Average Rating 8 | 5 9 8 7 On Entrance 6 | . 9 8 8 Avg Prop Armor Cover (%) 14 | . . 14 14 Naked Turns . | . . . . Heaviest Build 32 | 15 21 32 27 Greatest Support 20 | 20 20 20 16 Greatest Overweight (x) 2 | 2 1 1 1 Average Overweight (x) . | . . . 1 Largest Inventory Capacity 15 | 8 10 15 15 Average Capacity 10 | 7 9 11 15 Most Carried 12 | 7 10 12 10 Average Carried 9 | 4 8 10 9 Final Capacity 15 | 8 10 15 15 Final Carried 10 | 7 10 9 8 Class Distribution -------------------- 100% | Mutant Dominant Class ---------------- Mutant | -10/Materials Mutant | -10/Mines Mutant | -10/Subcaves Resources | -11 -10 -10 -10 ----------- Run | Yrd Mat Min Sub Matter Collected 1030 | 292 497 221 20 Remotely . | . . . . Salvage Created 832 | 117 547 108 60 Parts 65 | 9 41 12 3 Haulers Intercepted 2 | . 2 . . Recyclers Shooed 1 | 1 . . . Parts Field Recycled . | . . . . Retrieved Matter . | . . . . Parts Self-Destructed 4 | . . . 4 Prevented . | . . . . Parts Restored . | . . . . Kills | -11 -10 -10 -10 ------- Run | Yrd Mat Min Sub Combat Hostiles Destroyed 25 | . 12 10 3 Guns 15 | . 12 3 . Cannons 3 | . . 3 . AOE 7 | . . 4 3 Classes Destroyed 9 | 2 5 1 1 Worker 1 | . 1 . . Tunneler 2 | 2 . . . Hauler 2 | . 2 . . Recycler 1 | 1 . . . Watcher 3 | . 3 . . Swarmer 9 | . 6 3 . Grunt 8 | . 6 2 . Subdweller 3 | . . . 3 Assembled 4 | . . 4 . Best Kill Streak 5 | 3 5 4 2 Combat Bots Only 4 | . 4 4 2 Max Kills in Single Turn 2 | 1 2 2 2 Gunslinging 1 | . 1 . . Exploded 2 | . . 2 2 Melee . | . . . . Uniques/NPCs Destroyed 1 | . . 1 . YI-UF0 (-10/Mines) Combat | -11 -10 -10 -10 -------- Run | Yrd Mat Min Sub Hostile Shots Fired 102 | . 45 37 20 Missed 28 | . 14 8 6 Hits 74 | . 31 29 14 Melee 1 | . . 1 . Projectile 73 | . 31 28 14 AOE 13 | . . 13 . Critical Strikes 4 | . 3 . 1 Damage Taken 1244 | . 339 591 314 Core 254 | . 111 85 58 Absorbed by Shields . | . . . . Redirected to Shielding 26 | . 8 18 . Regen/Repaired (Parts) 34 | . 34 . . Core Remaining (%) 100 | 100 . . . Volleys Fired 83 | 4 52 17 10 Largest 2 | 2 2 2 2 Hottest 125 | 60 100 125 120 Shots Fired 152 | 8 91 33 20 Gun 103 | 8 84 11 . Cannon 31 | . . 18 13 Launcher 11 | . . 4 7 Special 7 | . 7 . . Kinetic 45 | 4 39 2 . Thermal 57 | 4 17 23 13 Explosive 11 | . . 4 7 Electromagnetic 39 | . 35 4 . Robot Hit Streak 12 | 2 10 11 12 Robot Miss Streak 4 | 1 4 4 2 Penetration Max . | . . . . Secondary Targets 3 | . 3 . . Max Gunslinging Chain 1 | . 1 . . Shots Hit Robots 95 | 4 56 21 14 Core Hits 53 | 4 26 18 5 Critical Kills . | . . . . Critical Parts Destroyed . | . . . . Critical Strikes . | . . . . Melee Attacks . | . . . . Impact . | . . . . Slashing . | . . . . Piercing . | . . . . Sneak Attacks . | . . . . Combat Hostiles . | . . . . Follow-up Attacks . | . . . . Damage Inflicted 2186 | 48 737 635 766 Guns 882 | 48 737 97 . Cannons 335 | . . 192 143 Explosions 969 | . . 346 623 Melee . | . . . . Ramming . | . . . . Kinetic 342 | 12 316 14 . Thermal 493 | 36 74 240 143 Explosive 969 | . . 346 623 Electromagnetic 382 | . 347 35 . Impact . | . . . . Slashing . | . . . . Piercing . | . . . . Highest Corruption . | . . . . Average Corruption . | . . . . Corruption Purged . | . . . . Corruption Blocked . | . . . . Overload Shots . | . . . . Overflow Damage 40 | . . 40 . Projectiles 5 | . . 5 . Explosions 35 | . . 35 . Melee . | . . . . Knockbacks . | . . . . Impact . | . . . . Kinetic . | . . . . Secondary . | . . . . Self-Inflicted Damage 29 | . . . 29 Shots 2 | . . . 2 Rammed . | . . . . Targets Rammed . | . . . . Kicked . | . . . . Crushed . | . . . . Highest Temperature 284 | . 93 284 . Average Temperature 55 | . 38 81 . Received Heat Transfer 216 | . 195 15 6 Siege Activations . | . . . . Martial Activations . | . . . . Shielding Activations . | . . . . Robots Disrupted . | . . . . Combat Hostiles . | . . . . Robots Corrupted . | . . . . Combat Hostiles . | . . . . Parts Fried 1 | . 1 . . Impact Corruptions . | . . . . Robots Melted . | . . . . Combat Hostiles . | . . . . Parts Melted . | . . . . Heat Transferred 1064 | 75 175 518 296 Parts Sabotaged . | . . . . Parts Stolen . | . . . . Parts Stripped . | . . . . Power Chain Reactions . | . . . . Alert | -11 -10 -10 -10 ------- Run | Yrd Mat Min Sub Maximum Alert Level . | . . . . Low Security (%) 100 | 100 100 100 . Level 1 . | . . . . Level 2 . | . . . . Level 3 . | . . . . Level 4 . | . . . . Level 5 . | . . . . High Security . | . . . . Max Security . | . . . . Peak Influence 113 | 5 113 99 . Initial 18 | . . 18 . Average 25 | 1 41 9 . Influence Increases 617 | 15 448 154 . Destroy 0b10 Robot/C 340 | . 240 100 . Destroy 0b10 Robot/NC 45 | 15 30 . . Destroy Leader 80 | . 60 20 . Successful Hack 53 | . 53 . . Select Force Hacks 60 | . 60 . . Destroy Structure 39 | . 5 34 . Influence Decreases 617 | 15 399 203 . Entered New Map 31 | . . 31 . Time Decay 586 | 15 399 172 . Squads Dispatched 3 | . 3 . . Investigation 3 | . 3 . . Extermination . | . . . . Reinforcement . | . . . . Assault . | . . . . Garrison . | . . . . Intercept . | . . . . Searches Triggered . | . . . . Construction Impeded . | . . . . Haulers Reinforced . | . . . . Active Scanning Responses . | . . . . Cargo Convoy Interrupts . | . . . . Stealth | -11 -10 -10 -10 --------- Run | Yrd Mat Min Sub Distress Signals 1 | . . 1 . Communications Jammed . | . . . . Distress Signals . | . . . . Times Spotted 33 | . 17 12 4 Peak Tracking Total 13 | . 3 13 2 Tactical Retreats 1 | . . 1 . Traps | -11 -10 -10 -10 ------- Run | Yrd Mat Min Sub Traps Triggered 1 | . 1 . . Indirectly . | . . . . Trap Hack Attempts . | . . . . Triggered . | . . . . Disarmed . | . . . . Reprogrammed . | . . . . Reused . | . . . . Traps Extracted . | . . . . Installed . | . . . . Triggered . | . . . . Machines | -11 -10 -10 -10 ---------- Run | Yrd Mat Min Sub Machines Disabled . | . . . . Max in Single Turn . | . . . . Machines Repaired . | . . . . Machines Dismantled . | . . . . Machines Sabotaged . | . . . . Overloaded Fab Kills . | . . . . Hacking | -11 -10 -10 -10 --------- Run | Yrd Mat Min Sub Machines Accessed 11 | . 11 . . Terminals 8 | . 8 . . Fabricators . | . . . . Repair Stations 1 | . 1 . . Recycling Units 2 | . 2 . . Scanalyzers . | . . . . Garrison Access . | . . . . Total Hacks 46 | . 46 . . Successful 25 | . 25 . . Failed 20 | . 20 . . Catastrophic 1 | . 1 . . Database Lockouts 1 | . 1 . . Manual 31 | . 31 . . Terminals 33 | . 33 . . Fabricators . | . . . . Repair Stations 5 | . 5 . . Recycling Units 8 | . 8 . . Scanalyzers . | . . . . Garrison Access . | . . . . Terminal Hacks 5 | . 5 . . Robot Analysis 2 | . 2 . . Prototype ID Bank 1 | . 1 . . Terminal Index 1 | . 1 . . Locate Traps 1 | . 1 . . Fabricator Hacks . | . . . . Repair Station Hacks 4 | . 4 . . Scan Component 2 | . 2 . . Repair 2 | . 2 . . Recycling Unit Hacks 1 | . 1 . . Retrieve Components 1 | . 1 . . Scanalyzer . | . . . . Garrison Access Hacks . | . . . . Unauthorized Hacks 15 | . 15 . . Terminals 11 | . 11 . . Assimilate 1 | . 1 . . Botnet 4 | . 4 . . Operators 1 | . 1 . . Skim 5 | . 5 . . Fabricators . | . . . . Repair Stations . | . . . . Recycling Units 4 | . 4 . . Reject 1 | . 1 . . Mask 1 | . 1 . . Tunnel 2 | . 2 . . Scanalyzers . | . . . . Garrison Access . | . . . . Data Cores Recovered . | . . . . Used . | . . . . Hacking Detections 10 | . 10 . . Full Trace Events 1 | . 1 . . Feedback Events . | . . . . Feedback Blocked . | . . . . Robot Schematics Acquired . | . . . . Robots Built . | . . . . Authchips . | . . . . Time . | . . . . Total Robot Build Rating . | . . . . Part Schematics Acquired . | . . . . Parts Built . | . . . . Authchips . | . . . . Time . | . . . . Total Part Build Rating . | . . . . Part Studies Acquired . | . . . . Parts Repaired 2 | . 2 . . Time 64 | . 64 . . Parts Recycled . | . . . . Recycled Matter . | . . . . Retrieved Matter . | . . . . Retrieved Components 3 | . 3 . . Parts Scanalyzed . | . . . . Part Schematics Acquired . | . . . . Parts Damaged . | . . . . Bothacking | -11 -10 -10 -10 ------------ Run | Yrd Mat Min Sub Used RIF Installer . | . . . . Robots Hacked . | . . . . Non-combat . | . . . . Combat . | . . . . Robot Hacks Applied . | . . . . Relay Couplers Released . | . . . . Fabnet Peak Effective % . | . . . . Robots Rewired . | . . . . Allies Hacked . | . . . . Hacks Repelled . | . . . . Allies | -11 -10 -10 -10 -------- Run | Yrd Mat Min Sub Total Allies . | . . . . Largest Group . | . . . . Highest-Rated Group . | . . . . Highest-Rated Ally . | . . . . Total Orders . | . . . . Ally Attacks . | . . . . Total Damage . | . . . . Kills . | . . . . Allies Corrupted . | . . . . Allies Melted . | . . . . Intel | -11 -10 -10 -10 ------- Run | Yrd Mat Min Sub Active Infowar (turns) 1173 | 16 1151 6 . Sensors 6 | . . 6 . Terrain 1167 | 16 1151 . . Robot Analysis Total 2 | . 2 . . Derelict Logs Recovered 2 | . . 2 . Drone Launches . | . . . . Drone Recoveries . | . . . . Exploration | -11 -10 -10 -10 ------------- Run | Yrd Mat Min Sub Turns Passed 3210 | 84 1597 1448 81 Spaces Moved 1846 | 48 1070 701 27 Core 14 | 14 . . . Treads . | . . . . Legs 1747 | 34 1070 643 . Wheels 85 | . . 58 27 Hover . | . . . . Flight . | . . . . Fastest Speed 50 | 50 120 115 115 Average Speed 143 | 111 120 183 115 Slowest Speed 190 | 190 190 190 115 Overloaded Moves . | . . . . Propulsion Burnouts . | . . . . Robots Hopped . | . . . . Potential Cave-ins . | . . . . Cave-ins Triggered . | . . . . Exploration Rate (%) 49 | 4 89 99 4 Regions Visited 3 Branch Regions 2 Pre-discovered Areas 5 | . 4 1 . Known Exits Taken 2 | . 1 1 . Unknown Exits Taken 1 | 1 . . . Scrap Searched 1 | . . 1 . Spaces Dug 7 | . 7 . . Terrain Destroyed 66 | . 7 40 19 Melee . | . . . . Projectile 7 | . 7 . . AOE 59 | . . 40 19 Terrain Rammed . | . . . . Walls Destroyed . | . . . . Machines Disabled . | . . . . Actions | -11 -10 -10 -10 --------- Run | Yrd Mat Min Sub Total 2224 | 67 1273 826 58 Wait 214 | . 116 81 17 Move 1843 | 47 1069 700 27 Hop . | . . . . Pick Up 21 | 8 8 4 1 Fast Attach 12 | 6 3 3 . Attach 7 | 1 1 3 2 Detach . | . . . . Swap 29 | 1 16 11 1 Drop 15 | . 8 7 . Fire 83 | 4 52 17 10 Melee . | . . . . Ram . | . . . . Kick . | . . . . Crush . | . . . . Escape Stasis . | . . . . Rewire . | . . . . Trap . | . . . . Miscellaneous . | . . . . Route ------- -11/Scrapyard -10/Materials (discovered 6 exits: *Mat x3 / *Min x2 / *Sub) -10/Mines (discovered 3 exits: *Mat x2 / *Sub) -10/Subcaves (discovered 3 exits: Mat x2 / Rec) History --------- Turn | Location | Event 18 | -11/Scrapyard | Discovered new exit (range 16) 85 | -11/Scrapyard | Entered Materials 160 | -10/Materials | Discovered new exit (range 9) 310 | -10/Materials | Build established: Mutant 535 | -10/Materials | Discovered new exit (range 12) 658 | -10/Materials | Learned location of 1 exit from Recycling 733 | -10/Materials | Learned location of 2 exits from Subcaves 742 | -10/Materials | Discovered new exit (range 12) 855 | -10/Materials | Identified exit to Materials 855 | -10/Materials | Identified exit to Mines 855 | -10/Materials | Identified exit to Subcaves 934 | -10/Materials | Learned location of Storage (-9) 942 | -10/Materials | Central database locked down 1034 | -10/Materials | Learned 2 Storage zone layouts 1203 | -10/Materials | Repaired Imp. Terrain Scanner 1231 | -10/Materials | Repaired EM Pulse Gun 1682 | -10/Materials | Entered Mines 1953 | -10/Mines | Assembled infested the area 1984 | -10/Mines | Core integrity fell below 50% 2148 | -10/Mines | Discovered exit to Materials (range 11) 2228 | -10/Mines | YI-UF0 nonchalantly dropped a Grenade Launcher on the ground 2377 | -10/Mines | Discovered exit to Subcaves (range 13) 2443 | -10/Mines | Deemed a non-threat by the Exiles lab entrance 2603 | -10/Mines | Found a damaged Exp. Sensor Array with a note attached 2607 | -10/Mines | Found Prototype Device 2607 | -10/Mines | Identified Exp. Sensor Array 2765 | -10/Mines | Discovered exit to Materials (range 6) 2826 | -10/Mines | Received a Rocket Launcher from a helpful Derelict 3059 | -10/Mines | Destroyed YI-UF0 3089 | -10/Mines | Lost 4 parts (1p2n1w) 3130 | -10/Mines | Entered Subcaves 3131 | -10/Subcaves | Approached by a straggling Scientist 3131 | -10/Subcaves | Identified exit to Recycling 3132 | -10/Subcaves | Identified exit to Materials 3196 | -10/Subcaves | Core integrity fell below 20% 3211 | -10/Subcaves | Destroyed by CR-OIC(R) with Subdweller Machine Gun Last Messages --------------- beginning to lose hope I'd never make it past all the Subs lurking out here." Loading 1 Recycling entrance... Loading 2 Subcaves exits... 03134_ 8B-WV7(c): "Hey, let me tag along and I can get us both out of this nasty situation. At least I think I can... The group I got separated from was talking about a shortcut back to the UFD." 8B-WV7(c): "I think it's somewhere north of here" 03181_ ZK-FRB(R) destroyed. 03181_ 3W-BUY(R) destroyed. 03188_ Acquired Sub. Monowheel. 03189_ Acquired 20 matter. 03192_ Subatomizers dissect the Sub. Power Source. 03198_ Com. Wheel destroyed. 03200_ Destroyed Scrap Shield. 03203_ Subatomizers dissect the Sub. Power Source. 03203_ FZ-TP3(R) destroyed. 03205_ Grenade Launcher destroyed. 03211_ The unstable cave ceiling collapses. Map ----- +----------------------------------------------------+ | ?????????????????????????????????????????????????? | | ?????????????????????????????????????????????????? | | ?????????????????????????????????????????????????? | | ?????????????????????????????????????????????????? | | ?????????????????????????????????????????????????? | | ?????????????????????????????????????????????????? | | ?????????????????????????????????????????????????? | | ?????????????????????????????????????????????????? | | ?????????????????????????????????????????????????? | | ?????????????????????????????????????????????????? | | ?????????????????????????????????????????????????? | | ?????????????????????????????????????????????????? | | ?????????????????????????????????????????????????? | | ?????????????????????????????????????????????????? | | ?????????????????????????????????????????????????? | | ???????????????????????????????????#?????????????? | | ?????????????????????????????????? #?????????????? | | ????????????????????????????????? ##????????????? | | ???????????????????????????????## #????????????? | | ?????????????????????????????? #????????????? | | ????????????#######?????????? #?????????????? | | ?????????#### # # #####????## #?????????????? | | ????????## ##### % #?????????????? | | ????????# # ##????????????? | | ????????# ## &*% % #????????????? | | ????????# ###### !@ [ #?????????????? | | ????????# #????# Ru###?????????????? | | ????????# #??# c"# #????????????? | | ????????# ##?# "" ""# #??????????? | | ????????# ## "" " """ "?????????? | | ????????## ####"" " "" # # " ????????????? | | ?????????### #??###"""" ## ####"????????????? | | ???????????# #????# "### ?? ""#????????????????? | | ???????????# ##???? ??# ??""##????????????????? | | ???????????# #???? "??### ?? #?????????????????? | | ???????????# #??? ?????????? #?????????????????? | | ???????????# ????"?????????????#?????????????????? | | ???????????# ????????????????????????????????????? | | ??????????? ????????????????????????????????????? | | ???????????# ????????????????????????????????????? | | ???????????##????????????????????????????????????? | | ?????????????????????????????????????????????????? | | ?????????????????????????????????????????????????? | | ?????????????????????????????????????????????????? | | ?????????????????????????????????????????????????? | | ?????????????????????????????????????????????????? | | ?????????????????????????????????????????????????? | | ?????????????????????????????????????????????????? | | ?????????????????????????????????????????????????? | | ?????????????????????????????????????????????????? | +----------------------------------------------------+ Best States ------------- Heat Dissipation 35 Energy Generation 10 Energy Capacity 250 Matter Stores 300 Matter Capacity 300 Sight Range 16 Robot Scan Range 20 Terrain Scan Range 16 Terrain Scan Density 10 Weapon Shielding 33 Evasion (%) 55 Recoil Reduction 2 Authchip Count 1 Item Schematics ----------------- None Robot Schematics ------------------ None Fabricated ------------ Nothing Repaired ---------- Imp. Terrain Scanner | 13% | -10/Materials EM Pulse Gun | 66% | -10/Materials Studied --------- None Alien Tech Used ----------------- None Achievements -------------- None Challenges ------------ None Game ------ Seed AlertPlasmaDisplacer Manual? 0 Play Time 00:22:16 Cumulative 735.1 hours Start 2025.11.27 @ 16:09:27 End 2025.11.27 @ 16:31:35 Sessions 1 Manual Loads 0 Difficulty Rogue Special Mode None Game No. 514 Rogue 514 Adventurer 0 Explorer 0 Win Type - Total 1 Types 1/0/0/0/0/0/0/0/0/0 Lore% 71 Gallery% 68 Achievement% 47 Wizard Run 0 Options --------- Layout 1 ASCII 0 Keyboard 0 Movement Mouse Keybinds 0 Fullscreen 1 Font 20/SmallcapsGlow Map View 54x42 Zoom Use 0% Tactical HUD 1 Map Filters NONE Filters NONE Steam 1 RUN: 9e72b6df-9bff-4118-8f0e-f7f7f6fd1295